[Event "Eurasia Open Cup 2019"]
[Site "Ekaterinburg"]
[Date "2019.07.31"]
[Round "1.1"]
[White "Alekseev, Evgeny"]
[Black "Tyurin, Ilya"]
[Result "1-0"]
[ECO "B13"]
[WhiteElo "2645"]
[BlackElo "2168"]
[Annotator "RC"]
[PlyCount "169"]
[EventDate "2019.07.31"]
[EventType "swiss"]
[EventCountry "RUS"]
[SourceTitle "playchess.com"]
[Source "ChessBase"]
[SourceQuality "1"]
[TimeControl "5400+30"]

1. e4 {[%emt 0:43:01]} c6 {[%emt 0:23:02]} 2. d4 {[%emt 0:05:29]} d5 {[%emt 0:26:25]} 3. exd5 {[%emt 0:05:43]} cxd5 {[%emt 0:00:17]} 4. Bd3 {[%emt 0:13:07]} Nc6 {[%emt 0:04:55]} 5. c3 {[%emt 0:00:00]} Qc7 {[%emt 0:01:41]} 6. h3 {[%emt 0:06:46]} g6 {[%emt 0:00:05]} 7. Nf3 {[%emt 0:00:30]} Bf5 {[%emt 0:01:06]} 8. O-O {[%emt 0:03:15]} Nf6 {[%emt 0:00:48]} 9. Re1 {[%emt 0:07:47]} Bxd3 {[%emt 0:01:39]} 10. Qxd3 {[%emt 0:02:53]} Bg7 {[%emt 0:02:24]} 11. Nbd2 {[%emt 0:00:48]} O-O {[%emt 0:08:57]} 12. Nb3 {[%emt 0:02:28]} Ne4 {[%emt 0:01:50]} 13. Ng5 {[%emt 0:00:53]} Nxg5 {[%emt 0:03:09]} 14. Bxg5 {[%emt 0:00:01]} e6 {[%emt 0:00:44]} 15. Re2 {[%emt 0:00:25]} Na5 {[%emt 0:06:32]} 16. Nc1 {[%emt 0:00:01]} Qc4 {[%emt 0:00:08]} 17. Qf3 {[%emt 0:03:21]} f6 {[%emt 0:00:34]} 18. b3 {[%emt 0:00:00]} Qc6 {[%emt 0:00:47]} 19. Bd2 {[%emt 0:01:18]} e5 {[%emt 0:01:25]} 20. dxe5 {[%emt 0:00:31]} fxe5 {[%emt 0:00:00]} 21. Qe3 {[%emt 0:00:50]} e4 {[%emt 0:03:51]} 22. Re1 {[%emt 0:00:51]} Qd6 {[%emt 0:00:46]} 23. Ne2 {[%emt 0:00:56]} Nc6 {[%emt 0:03:20]} 24. Rad1 {[%emt 0:00:00]} Ne5 {[%emt 0:01:27]} 25. Qg3 {[%emt 0:01:01]} Qa6 {[%emt 0:01:19]} 26. Nc1 {[%emt 0:00:00]} Rad8 {[%emt 0:03:35]} 27. Be3 {[%emt 0:00:19]} Nc6 {[%emt 0:00:45]} 28. Bg5 {[%emt 0:00:32]} Bf6 {[%emt 0:00:09]} 29. Bxf6 {[%emt 0:00:30]} Rxf6 {[%emt 0:00:40]} 30. c4 {[%emt 0:00:02]} Qa5 {[%emt 0:00:18]} 31. cxd5 {[%emt 0:00:32]} Rxd5 {[%emt 0:00:18]} 32. Qe3 {[%emt 0:00:58]} Rfd6 {[%emt 0:00:34]} 33. Rxd5 {[%emt 0:00:02]} Qxd5 {[%emt 0:00:03]} 34. Ne2 {[%emt 0:00:40]} Qd2 {[%emt 0:01:49]} 35. Nc3 {[%emt 0:00:58]} Qxe3 {[%emt 0:00:20]} 36. Rxe3 {[%emt 0:00:19]} Rd2 {[%emt 0:01:17]} 37. a3 {[%emt 0:01:01]} Rb2 {[%emt 0:00:13]} 38. Nxe4 {[%emt 0:00:32]} Nd4 {[%emt 0:00:10]} 39. b4 {[%emt 0:00:11]} Ra2 {[%emt 0:00:05]} 40. Rd3 {[%emt 0:00:36]} Ne6 {[%emt 0:00:42]} 41. Rd7 {[%emt 0:00:22]} h5 {[%emt 0:01:10]} 42. Rxb7 {[%emt 0:00:07]} Rxa3 {[%emt 0:00:18]} 43. h4 {[%emt 0:00:24]} Rb3 {[%emt 0:00:29]} 44. Nf6+ {[%emt 0:00:43]} Kf8 {[%emt 0:00:31]} 45. Nd7+ {[%emt 0:00:44]} Kg8 {[%emt 0:00:43]} 46. Ne5 {[%emt 0:00:40]} Nf4 {[%emt 0:00:28]} 47. g3 {[%emt 0:00:46]} Rb1+ {[%emt 0:00:59]} 48. Kh2 {[%emt 0:00:00]} Nd5 {[%emt 0:00:33]} 49. Rxa7 {[%emt 0:00:02]} Rxb4 {[%emt 0:00:28]} 50. Nxg6 {[%emt 0:00:13]} Nf6 {[%emt 0:00:18]} 51. Ra2 {[%emt 0:00:10]} Rb3 {[%emt 0:00:05]} 52. Nf4 {[%emt 0:00:07]} Rb5 {[%emt 0:00:04]} 53. Kg2 {[%emt 0:01:06]} Kg7 {[%emt 0:00:11]} 54. Ra7+ {[%emt 0:00:05]} Kh6 {[%emt 0:00:15]} 55. Re7 {[%emt 0:00:04]} Ra5 {[%emt 0:00:07]} 56. Re6 {[%emt 0:01:33]} Kg7 {[%emt 0:00:22]} 57. Nd3 {[%emt 0:00:26]} Rd5 {[%emt 0:00:22]} 58. Re3 {[%emt 0:00:06]} Ng4 {[%emt 0:00:17]} 59. Re7+ {[%emt 0:00:03]} Kh6 {[%emt 0:01:14]} 60. Re6+ {[%emt 0:00:00]} Kg7 {[%emt 0:00:20]} 61. Nf4 {[%emt 0:00:17]} Rd2 {[%emt 0:00:11]} 62. Nxh5+ {[%emt 0:01:04]} Kh8 {[%emt 0:00:21]} 63. Re8+ {[%emt 0:01:33]} Kh7 {[%emt 0:00:15]} 64. Kf3 {[%emt 0:00:24]} Nxf2 {[%emt 0:00:19]} 65. Nf6+ {[%emt 0:01:20]} Kg6 {[%emt 0:00:21]} 66. Ne4 {[%emt 0:00:04]} Nxe4 {[%emt 0:01:15]} 67. Rxe4 {[%emt 0:00:50]} Rd6 {[%emt 0:00:05]} 68. Kg4 {[%emt 0:00:14]} Ra6 {[%emt 0:00:04]} 69. h5+ {[%emt 0:00:20]} Kh6 {[%emt 0:00:25]} 70. Kh4 {[%emt 0:00:30]} Ra5 {[%emt 0:00:43]} 71. g4 {[%emt 0:00:37]} Kg7 {[%emt 0:04:08]} 72. Re6 {[%emt 0:01:59]} Rb5 {[%emt 0:00:30]} 73. Rc6 {[%emt 0:00:30]} Ra5 {[%emt 0:00:30]} 74. h6+ {[%emt 0:00:30]} Kh7 {[%emt 0:00:30]} 75. g5 {[%emt 0:00:30]} Ra1 {[%emt 0:00:30]} 76. Rc7+ {[%emt 0:00:30]} Kg8 {[%emt 0:00:30]} 77. Kh5 {[%emt 0:00:30]} Ra8 {[%emt 0:00:30]} 78. Re7 {[%emt 0:00:30]} Rb8 {[%emt 0:00:30]} 79. Rd7 {[%emt 0:00:30]} Ra8 {[%emt 0:00:30]} 80. g6 {[%emt 0:00:30]} Ra5+ {[%emt 0:00:30]} 81. Kg4 {[%emt 0:00:30]} Ra4+ {[%emt 0:00:30]} 82. Kf5 {[%emt 0:00:30]} Ra8 {[%emt 0:00:30]} 83. Ke6 {[%emt 0:00:30]} Kh8 {[%emt 0:00:30]} 84. Ke7 {[%emt 0:00:30]} Rg8 {[%emt 0:00:30]} 85. Rd8 {[%emt 0:00:30]} 1-0

[Event "Eurasia Open Cup 2019"]
[Site "Ekaterinburg"]
[Date "2019.07.31"]
[Round "1.4"]
[White "Miroshnik, Ekaterina"]
[Black "Pridorozhni, Aleksei"]
[Result "0-1"]
[ECO "A21"]
[WhiteElo "2103"]
[BlackElo "2586"]
[Annotator "ChessBase"]
[PlyCount "110"]
[EventDate "2019.07.31"]
[EventType "swiss"]
[EventCountry "RUS"]
[SourceTitle "playchess.com"]
[Source "ChessBase"]
[SourceQuality "1"]
[TimeControl "5400+30"]

1. d4 {[%emt 0:36:39]} d6 {[%emt 0:19:24]} 2. c4 {[%emt 0:12:06]} e5 {[%emt 0:03:27]} 3. e3 {[%emt 0:04:05]} f5 {[%emt 0:01:44]} 4. Nf3 {[%emt 0:00:19]} e4 {[%emt 0:00:10]} 5. Nfd2 {[%emt 0:03:28]} Nf6 {[%emt 0:00:29]} 6. Nc3 {[%emt 0:03:09]} g6 {[%emt 0:00:38]} 7. Be2 {[%emt 0:02:26]} Bg7 {[%emt 0:00:28]} 8. O-O {[%emt 0:01:07]} O-O {[%emt 0:08:05]} 9. Qc2 {[%emt 0:04:41]} c6 {[%emt 0:01:24]} 10. b4 {[%emt 0:02:12]} Be6 {[%emt 0:10:26]} 11. a4 {[%emt 0:00:53]} Nbd7 {[%emt 0:02:23]} 12. Rb1 {[%emt 0:01:44]} g5 {[%emt 0:01:00]} 13. f3 {[%emt 0:01:46]} d5 {[%emt 0:03:45]} 14. cxd5 {[%emt 0:01:45]} Nxd5 {[%emt 0:02:22]} 15. Nc4 {[%emt 0:01:10]} N7f6 {[%emt 0:00:08]} 16. Nxd5 {[%emt 0:00:08]} cxd5 {[%emt 0:01:42]} 17. Ne5 {[%emt 0:00:59]} exf3 {[%emt 0:00:19]} 18. Bxf3 {[%emt 0:00:00]} g4 {[%emt 0:02:22]} 19. Bd1 {[%emt 0:03:38]} Rc8 {[%emt 0:01:21]} 20. Qd3 {[%emt 0:00:21]} Ne4 {[%emt 0:01:07]} 21. Bb2 {[%emt 0:00:54]} Rc7 {[%emt 0:00:21]} 22. Bb3 {[%emt 0:00:51]} Qh4 {[%emt 0:00:42]} 23. Rbe1 {[%emt 0:00:21]} Rfc8 {[%emt 0:00:47]} 24. Qe2 {[%emt 0:02:02]} Bh6 {[%emt 0:00:14]} 25. Nd3 {[%emt 0:01:25]} b6 {[%emt 0:00:28]} 26. b5 {[%emt 0:01:26]} Qe7 {[%emt 0:00:33]} 27. Rc1 {[%emt 0:00:33]} Bg5 {[%emt 0:00:07]} 28. Rxc7 {[%emt 0:03:08]} Rxc7 {[%emt 0:00:55]} 29. Rc1 {[%emt 0:00:47]} h5 {[%emt 0:00:35]} 30. Rxc7 {[%emt 0:00:06]} Qxc7 {[%emt 0:00:39]} 31. Ne5 {[%emt 0:00:18]} Qd6 {[%emt 0:00:22]} 32. Qe1 {[%emt 0:00:16]} h4 {[%emt 0:00:11]} 33. Bc1 {[%emt 0:00:05]} Qc7 {[%emt 0:01:03]} 34. Bd2 {[%emt 0:00:48]} h3 {[%emt 0:00:08]} 35. g3 {[%emt 0:00:08]} Bf6 {[%emt 0:00:58]} 36. Nc6 {[%emt 0:00:15]} Kg7 {[%emt 0:00:31]} 37. Bb4 {[%emt 0:00:05]} a6 {[%emt 0:00:25]} 38. Kh1 {[%emt 0:00:44]} Bg5 {[%emt 0:00:37]} 39. Ba3 {[%emt 0:02:52]} axb5 {[%emt 0:00:04]} 40. axb5 {[%emt 0:00:10]} Qc8 {[%emt 0:00:36]} 41. Bb4 {[%emt 0:00:18]} Kh6 {[%emt 0:00:13]} 42. Kg1 {[%emt 0:00:05]} Kh5 {[%emt 0:00:31]} 43. Kh1 {[%emt 0:00:27]} Qh8 {[%emt 0:37:46]} 44. Ba3 {[%emt 0:11:20]} Qh6 {[%emt 0:00:30]} 45. Bc1 {[%emt 0:00:30]} Qf8 {[%emt 0:00:30]} 46. Bb2 {[%emt 0:00:30]} Qh6 {[%emt 0:00:30]} 47. Bc1 {[%emt 0:00:30]} Nd6 {[%emt 0:00:30]} 48. Qe2 {[%emt 0:00:30]} Nc4 {[%emt 0:00:30]} 49. Bxc4 {[%emt 0:00:30]} dxc4 {[%emt 0:00:30]} 50. Nb4 {[%emt 0:00:30]} Qf8 {[%emt 0:00:30]} 51. Bd2 {[%emt 0:00:30]} Qa8+ {[%emt 0:00:30]} 52. Kg1 {[%emt 0:00:30]} c3 {[%emt 0:00:30]} 53. Bc1 {[%emt 0:00:30]} Bc4 {[%emt 0:00:30]} 54. Qf2 {[%emt 0:00:30]} Qe4 {[%emt 0:00:30]} 55. Nc2 {[%emt 0:00:30]} Bxb5 {[%emt 0:00:30]} 0-1

[Event "Eurasia Open Cup 2019"]
[Site "Ekaterinburg"]
[Date "2019.07.31"]
[Round "1.5"]
[White "Shaposhnikov, Evgeny"]
[Black "Fomin, Pavel V."]
[Result "1/2-1/2"]
[ECO "A39"]
[WhiteElo "2575"]
[BlackElo "2103"]
[Annotator "ChessBase"]
[PlyCount "77"]
[EventDate "2019.07.31"]
[EventType "swiss"]
[EventCountry "RUS"]
[SourceTitle "playchess.com"]
[Source "ChessBase"]
[SourceQuality "1"]
[TimeControl "5400+30"]

1. Nf3 {[%emt 0:34:53]} Nf6 {[%emt 0:15:13]} 2. c4 {[%emt 0:02:25]} c5 {[%emt 0:02:08]} 3. Nc3 {[%emt 0:04:12]} g6 {[%emt 0:14:19]} 4. d4 {[%emt 0:18:04]} cxd4 {[%emt 0:14:05]} 5. Nxd4 {[%emt 0:00:23]} Bg7 {[%emt 0:00:23]} 6. g3 {[%emt 0:04:58]} O-O {[%emt 0:01:24]} 7. Bg2 {[%emt 0:02:49]} Nc6 {[%emt 0:03:02]} 8. O-O {[%emt 0:00:36]} Nxd4 {[%emt 0:03:34]} 9. Qxd4 {[%emt 0:04:56]} d6 {[%emt 0:08:59]} 10. Qd3 {[%emt 0:03:10]} Nd7 {[%emt 0:00:46]} 11. b3 {[%emt 0:00:32]} Nc5 {[%emt 0:04:29]} 12. Qe3 {[%emt 0:00:22]} Bd7 {[%emt 0:00:21]} 13. Bd2 {[%emt 0:00:56]} Bc6 {[%emt 0:03:10]} 14. Rac1 {[%emt 0:00:31]} e5 {[%emt 0:00:50]} 15. Nd5 {[%emt 0:00:56]} Ne6 {[%emt 0:00:06]} 16. Bc3 {[%emt 0:05:33]} Qd7 {[%emt 0:00:37]} 17. Qd2 {[%emt 0:03:32]} f5 {[%emt 0:04:43]} 18. e3 {[%emt 0:04:15]} Rad8 {[%emt 0:00:54]} 19. Rcd1 {[%emt 0:00:05]} e4 {[%emt 0:00:10]} 20. Qc2 {[%emt 0:00:05]} Nc5 {[%emt 0:00:11]} 21. Bxg7 {[%emt 0:01:43]} Qxg7 {[%emt 0:02:55]} 22. Rd4 {[%emt 0:02:10]} Nd3 {[%emt 0:01:14]} 23. Qd2 {[%emt 0:00:09]} Rfe8 {[%emt 0:17:57]} 24. Rd1 {[%emt 0:04:45]} Re6 {[%emt 0:00:30]} 25. Nb4 {[%emt 0:00:30]} Nxb4 {[%emt 0:00:30]} 26. Qxb4 {[%emt 0:00:30]} Qe5 {[%emt 0:00:30]} 27. c5 {[%emt 0:00:30]} d5 {[%emt 0:00:30]} 28. Qa5 {[%emt 0:00:30]} Qb8 {[%emt 0:00:30]} 29. b4 {[%emt 0:00:30]} b6 {[%emt 0:00:30]} 30. cxb6 {[%emt 0:00:30]} axb6 {[%emt 0:00:30]} 31. Qa3 {[%emt 0:00:30]} Qa8 {[%emt 0:00:30]} 32. Qb2 {[%emt 0:00:30]} Qa4 {[%emt 0:00:30]} 33. Rc1 {[%emt 0:00:30]} Ra8 {[%emt 0:00:30]} 34. b5 {[%emt 0:00:30]} Qxb5 {[%emt 0:00:30]} 35. Rb4 {[%emt 0:00:30]} Qa5 {[%emt 0:00:30]} 36. Rxb6 {[%emt 0:00:30]} Rc8 {[%emt 0:00:30]} 37. Bf1 {[%emt 0:00:30]} Bd7 {[%emt 0:00:30]} 38. Rxe6 {[%emt 0:00:30]} Rxc1 {[%emt 0:00:30]} 39. Re7 {[%emt 0:00:30]} 1/2-1/2

[Event "Eurasia Open Cup 2019"]
[Site "Ekaterinburg"]
[Date "2019.07.31"]
[Round "1.6"]
[White "Kolomensky, Vladimir"]
[Black "Bocharov, Ivan"]
[Result "0-1"]
[ECO "B92"]
[WhiteElo "2101"]
[BlackElo "2559"]
[Annotator "ChessBase"]
[PlyCount "62"]
[EventDate "2019.07.31"]
[EventType "swiss"]
[EventCountry "RUS"]
[SourceTitle "playchess.com"]
[Source "ChessBase"]
[SourceQuality "1"]
[TimeControl "5400+30"]

1. e4 {[%emt 0:47:36]} c5 {[%emt 0:14:10]} 2. Nf3 {[%emt 0:10:23]} d6 {[%emt 0:00:36]} 3. d4 {[%emt 0:02:01]} cxd4 {[%emt 0:17:56]} 4. Nxd4 {[%emt 0:06:55]} Nf6 {[%emt 0:03:48]} 5. Nc3 {[%emt 0:06:02]} a6 {[%emt 0:00:03]} 6. Be2 {[%emt 0:00:30]} e5 {[%emt 0:06:25]} 7. Nb3 {[%emt 0:08:31]} Be6 {[%emt 0:14:04]} 8. f4 {[%emt 0:05:02]} exf4 {[%emt 0:03:00]} 9. Bxf4 {[%emt 0:02:37]} Nc6 {[%emt 0:03:45]} 10. O-O {[%emt 0:00:02]} Be7 {[%emt 0:00:45]} 11. Kh1 {[%emt 0:04:11]} Rc8 {[%emt 0:04:19]} 12. Qe1 {[%emt 0:00:02]} Ne5 {[%emt 0:01:06]} 13. Rd1 {[%emt 0:00:21]} Qc7 {[%emt 0:00:32]} 14. Nd4 {[%emt 0:00:46]} O-O {[%emt 0:00:45]} 15. Qg3 {[%emt 0:00:48]} Rfe8 {[%emt 0:00:43]} 16. Be3 {[%emt 0:00:51]} Qa5 {[%emt 0:00:45]} 17. Nxe6 {[%emt 0:00:02]} fxe6 {[%emt 0:00:00]} 18. Bd4 {[%emt 0:01:18]} Kh8 {[%emt 0:01:52]} 19. a3 {[%emt 0:01:02]} Bd8 {[%emt 0:00:30]} 20. Bd3 {[%emt 0:01:00]} Bb6 {[%emt 0:24:56]} 21. Qe3 {[%emt 0:00:30]} Bxd4 {[%emt 0:00:30]} 22. Qxd4 {[%emt 0:00:30]} Rc6 {[%emt 0:00:30]} 23. Ne2 {[%emt 0:00:30]} Qb6 {[%emt 0:00:30]} 24. h3 {[%emt 0:00:30]} Kg8 {[%emt 0:00:30]} 25. Kh2 {[%emt 0:00:30]} Rec8 {[%emt 0:00:30]} 26. Kh1 {[%emt 0:00:30]} Kf7 {[%emt 0:00:30]} 27. Rd2 {[%emt 0:00:30]} Ke7 {[%emt 0:00:30]} 28. Rf2 {[%emt 0:00:30]} Qxd4 {[%emt 0:00:30]} 29. Nxd4 {[%emt 0:00:30]} Rb6 {[%emt 0:00:30]} 30. b3 {[%emt 0:00:30]} Rc3 {[%emt 0:00:30]} 31. Rfe2 {[%emt 0:00:30]} Nh5 {[%emt 0:00:30]} 0-1

[Event "Eurasia Open Cup 2019"]
[Site "Ekaterinburg"]
[Date "2019.07.31"]
[Round "1.9"]
[White "Sargsyan, Shant"]
[Black "Chekletsov, Egor"]
[Result "1-0"]
[ECO "A43"]
[WhiteElo "2529"]
[BlackElo "2088"]
[Annotator "ChessBase"]
[PlyCount "81"]
[EventDate "2019.07.31"]
[EventType "swiss"]
[EventCountry "RUS"]
[SourceTitle "playchess.com"]
[Source "ChessBase"]
[SourceQuality "1"]
[TimeControl "5400+30"]

1. d4 {[%emt 0:23:43]} Nf6 {[%emt 0:30:42]} 2. Nf3 {[%emt 0:00:14]} c5 {[%emt 0:03:51]} 3. d5 {[%emt 0:05:26]} g6 {[%emt 0:09:14]} 4. Nc3 {[%emt 0:02:13]} Bg7 {[%emt 0:07:40]} 5. e4 {[%emt 0:03:08]} d6 {[%emt 0:18:19]} 6. Bb5+ {[%emt 0:19:21]} Bd7 {[%emt 0:03:24]} 7. a4 {[%emt 0:00:31]} O-O {[%emt 0:00:25]} 8. O-O {[%emt 0:03:19]} Bg4 {[%emt 0:00:38]} 9. h3 {[%emt 0:09:52]} Bxf3 {[%emt 0:00:11]} 10. Qxf3 {[%emt 0:00:00]} a6 {[%emt 0:01:29]} 11. Be2 {[%emt 0:03:36]} Nbd7 {[%emt 0:04:07]} 12. Qf4 {[%emt 0:01:11]} Qc7 {[%emt 0:01:02]} 13. Qh4 {[%emt 0:01:10]} Rfc8 {[%emt 0:03:44]} 14. Bh6 {[%emt 0:03:12]} Bh8 {[%emt 0:00:30]} 15. a5 {[%emt 0:00:00]} Rcb8 {[%emt 0:02:42]} 16. Ra2 {[%emt 0:00:31]} b5 {[%emt 0:00:04]} 17. axb6 {[%emt 0:03:34]} Rxb6 {[%emt 0:00:10]} 18. Bd2 {[%emt 0:03:29]} c4 {[%emt 0:01:44]} 19. Rfa1 {[%emt 0:02:04]} Rab8 {[%emt 0:00:21]} 20. Bc1 {[%emt 0:00:00]} Nc5 {[%emt 0:00:21]} 21. Na4 {[%emt 0:01:42]} Nxa4 {[%emt 0:04:35]} 22. Rxa4 {[%emt 0:01:48]} c3 {[%emt 0:02:11]} 23. b3 {[%emt 0:00:09]} Rb4 {[%emt 0:00:01]} 24. Rxb4 {[%emt 0:00:42]} Rxb4 {[%emt 0:00:16]} 25. Bc4 {[%emt 0:00:17]} a5 {[%emt 0:01:32]} 26. Be3 {[%emt 0:02:04]} a4 {[%emt 0:00:18]} 27. f3 {[%emt 0:10:14]} axb3 {[%emt 0:03:59]} 28. cxb3 {[%emt 0:00:30]} h5 {[%emt 0:00:30]} 29. Bd4 {[%emt 0:00:30]} Rxc4 {[%emt 0:00:30]} 30. bxc4 {[%emt 0:00:30]} Qxc4 {[%emt 0:00:30]} 31. Qf2 {[%emt 0:00:30]} c2 {[%emt 0:00:30]} 32. Qd2 {[%emt 0:00:30]} Kh7 {[%emt 0:00:30]} 33. Bxf6 {[%emt 0:00:30]} Bxf6 {[%emt 0:00:30]} 34. Rc1 {[%emt 0:00:30]} Bd4+ {[%emt 0:00:30]} 35. Kh1 {[%emt 0:00:30]} Be5 {[%emt 0:00:30]} 36. f4 {[%emt 0:00:30]} Bg7 {[%emt 0:00:30]} 37. Qxc2 {[%emt 0:00:30]} Qd4 {[%emt 0:00:30]} 38. Qe2 {[%emt 0:00:30]} Bh6 {[%emt 0:00:30]} 39. Rf1 {[%emt 0:00:30]} h4 {[%emt 0:00:30]} 40. Qe1 {[%emt 0:00:30]} Qf6 {[%emt 0:00:30]} 41. e5 {[%emt 0:00:30]} 1-0

[Event "Eurasia Open Cup 2019"]
[Site "Ekaterinburg"]
[Date "2019.07.31"]
[Round "1.10"]
[White "Bogachkova, Alena"]
[Black "Kunin, Vitaly"]
[Result "0-1"]
[ECO "C41"]
[WhiteElo "2085"]
[BlackElo "2527"]
[Annotator "ChessBase"]
[PlyCount "66"]
[EventDate "2019.07.31"]
[EventType "swiss"]
[EventCountry "RUS"]
[SourceTitle "playchess.com"]
[Source "ChessBase"]
[SourceQuality "1"]
[TimeControl "5400+30"]

1. e4 {[%emt 0:41:50]} d6 {[%emt 0:13:51]} 2. d4 {[%emt 0:04:00]} Nf6 {[%emt 0:22:54]} 3. Nc3 {[%emt 0:14:46]} Nbd7 {[%emt 0:01:47]} 4. Nf3 {[%emt 0:04:37]} e5 {[%emt 0:22:39]} 5. g3 {[%emt 0:03:47]} c6 {[%emt 0:00:09]} 6. a4 {[%emt 0:02:37]} Be7 {[%emt 0:11:53]} 7. Bg2 {[%emt 0:00:19]} O-O {[%emt 0:00:35]} 8. h3 {[%emt 0:04:35]} d5 {[%emt 0:00:44]} 9. Nxe5 {[%emt 0:00:51]} Nxe4 {[%emt 0:00:07]} 10. Nxe4 {[%emt 0:04:25]} dxe4 {[%emt 0:01:32]} 11. Nxd7 {[%emt 0:00:59]} Bxd7 {[%emt 0:02:49]} 12. Bxe4 {[%emt 0:00:03]} Bb4+ {[%emt 0:02:40]} 13. Kf1 {[%emt 0:00:05]} Re8 {[%emt 0:00:10]} 14. Qd3 {[%emt 0:00:04]} g6 {[%emt 0:00:07]} 15. c3 {[%emt 0:13:02]} Bd6 {[%emt 0:00:57]} 16. Bd2 {[%emt 0:00:03]} Be6 {[%emt 0:01:04]} 17. Kg2 {[%emt 0:01:03]} Qd7 {[%emt 0:05:13]} 18. h4 {[%emt 0:00:26]} f5 {[%emt 0:02:04]} 19. Bf3 {[%emt 0:00:27]} Qf7 {[%emt 0:00:00]} 20. h5 {[%emt 0:00:19]} Bc4 {[%emt 0:00:00]} 21. hxg6 {[%emt 0:01:03]} hxg6 {[%emt 0:00:10]} 22. Qb1 {[%emt 0:01:39]} Be2 {[%emt 0:09:35]} 23. Qa2 {[%emt 0:00:30]} Bc4 {[%emt 0:00:30]} 24. Qb1 {[%emt 0:00:30]} Be2 {[%emt 0:00:30]} 25. Qa2 {[%emt 0:00:30]} Bxf3+ {[%emt 0:00:30]} 26. Kxf3 {[%emt 0:00:30]} Re6 {[%emt 0:00:30]} 27. Bf4 {[%emt 0:00:30]} Bxf4 {[%emt 0:00:30]} 28. gxf4 {[%emt 0:00:30]} Rae8 {[%emt 0:00:30]} 29. Qa3 {[%emt 0:00:30]} Kg7 {[%emt 0:00:30]} 30. Rh4 {[%emt 0:00:30]} Re1 {[%emt 0:00:30]} 31. Rxe1 {[%emt 0:00:30]} Qd5+ {[%emt 0:00:30]} 32. Kg3 {[%emt 0:00:30]} Rxe1 {[%emt 0:00:30]} 33. Rh2 {[%emt 0:00:30]} Rg1+ {[%emt 0:00:30]} 0-1

[Event "Eurasia Open Cup 2019"]
[Site "Ekaterinburg"]
[Date "2019.07.31"]
[Round "1.11"]
[White "Moiseenko, Vadim"]
[Black "Zharkov, Nikolay"]
[Result "1-0"]
[ECO "B90"]
[WhiteElo "2523"]
[BlackElo "2067"]
[Annotator "ChessBase"]
[PlyCount "105"]
[EventDate "2019.07.31"]
[EventType "swiss"]
[EventCountry "RUS"]
[SourceTitle "playchess.com"]
[Source "ChessBase"]
[SourceQuality "1"]
[TimeControl "5400+30"]

1. e4 {[%emt 0:34:12]} c5 {[%emt 0:22:50]} 2. Nf3 {[%emt 0:09:06]} d6 {[%emt 0:01:00]} 3. d4 {[%emt 0:01:06]} Nf6 {[%emt 0:02:34]} 4. Nc3 {[%emt 0:00:53]} cxd4 {[%emt 0:04:39]} 5. Nxd4 {[%emt 0:07:55]} a6 {[%emt 0:05:07]} 6. Be3 {[%emt 0:00:07]} e5 {[%emt 0:00:28]} 7. Nf3 {[%emt 0:00:14]} Be7 {[%emt 0:00:06]} 8. Bc4 {[%emt 0:00:38]} Be6 {[%emt 0:00:39]} 9. Bb3 {[%emt 0:00:05]} Nbd7 {[%emt 0:01:04]} 10. O-O {[%emt 0:00:46]} Rc8 {[%emt 0:00:04]} 11. Qe2 {[%emt 0:02:54]} Nc5 {[%emt 0:00:50]} 12. Bxe6 {[%emt 0:00:35]} Nxe6 {[%emt 0:00:08]} 13. Rfd1 {[%emt 0:02:15]} Qc7 {[%emt 0:00:36]} 14. Bg5 {[%emt 0:01:58]} Nxg5 {[%emt 0:00:44]} 15. Nxg5 {[%emt 0:06:33]} O-O {[%emt 0:02:34]} 16. a4 {[%emt 0:00:35]} Qb6 {[%emt 0:00:36]} 17. Ra3 {[%emt 0:00:00]} Rc5 {[%emt 0:00:19]} 18. Rb3 {[%emt 0:00:15]} Qc7 {[%emt 0:00:12]} 19. Rd3 {[%emt 0:00:00]} h6 {[%emt 0:00:03]} 20. Nf3 {[%emt 0:00:11]} Rd8 {[%emt 0:00:45]} 21. Nh4 {[%emt 0:00:00]} g6 {[%emt 0:00:08]} 22. Qe3 {[%emt 0:00:32]} Bf8 {[%emt 0:00:07]} 23. Qf3 {[%emt 0:00:59]} Bg7 {[%emt 0:00:59]} 24. g3 {[%emt 0:02:32]} Rc4 {[%emt 0:00:07]} 25. Ng2 {[%emt 0:00:06]} d5 {[%emt 0:02:43]} 26. Nxd5 {[%emt 0:05:08]} Rxd5 {[%emt 0:00:16]} 27. Rxd5 {[%emt 0:00:40]} Nxd5 {[%emt 0:00:11]} 28. exd5 {[%emt 0:00:22]} Rxa4 {[%emt 0:00:03]} 29. Ne3 {[%emt 0:00:24]} e4 {[%emt 0:00:03]} 30. Qf4 {[%emt 0:01:47]} Qxf4 {[%emt 0:00:05]} 31. gxf4 {[%emt 0:00:02]} b5 {[%emt 0:00:04]} 32. c4 {[%emt 0:00:18]} b4 {[%emt 0:00:07]} 33. c5 {[%emt 0:00:19]} Bf8 {[%emt 0:00:13]} 34. d6 {[%emt 0:23:33]} Ra5 {[%emt 0:56:36]} 35. d7 {[%emt 0:00:30]} Be7 {[%emt 0:00:30]} 36. Rxb4 {[%emt 0:00:30]} Rxc5 {[%emt 0:00:30]} 37. Rb8+ {[%emt 0:00:30]} Kg7 {[%emt 0:00:30]} 38. d8=Q {[%emt 0:00:30]} Bxd8 {[%emt 0:00:30]} 39. Rxd8 {[%emt 0:00:30]} Rb5 {[%emt 0:00:30]} 40. Rd2 {[%emt 0:00:30]} g5 {[%emt 0:00:30]} 41. f5 {[%emt 0:00:30]} h5 {[%emt 0:00:30]} 42. Kg2 {[%emt 0:00:30]} Rb3 {[%emt 0:00:30]} 43. Kg3 {[%emt 0:00:30]} a5 {[%emt 0:00:30]} 44. h4 {[%emt 0:00:30]} f6 {[%emt 0:00:30]} 45. Kg2 {[%emt 0:00:30]} a4 {[%emt 0:00:30]} 46. Rd4 {[%emt 0:00:30]} Rxb2 {[%emt 0:00:30]} 47. Rxa4 {[%emt 0:00:30]} gxh4 {[%emt 0:00:30]} 48. Rxe4 {[%emt 0:00:30]} h3+ {[%emt 0:00:30]} 49. Kg3 {[%emt 0:00:30]} h2 {[%emt 0:00:30]} 50. Rh4 {[%emt 0:00:30]} Kh6 {[%emt 0:00:30]} 51. Rxh2 {[%emt 0:00:30]} Rb4 {[%emt 0:00:30]} 52. Rh4 {[%emt 0:00:30]} Rb8 {[%emt 0:00:30]} 53. Ng4+ {[%emt 0:00:30]} 1-0